[Event "*** Titled Tuesday Blitz"]
[Site "Chess.com"]
[Date "2021.04.20"]
[Round "6"]
[White "Blitzking642"]
[Black "1977Ivan"]
[Result "1/2-1/2"]
[WhiteElo "2464"]
[BlackElo "2709"]
[TimeControl "180+1"]
[EndTime "11:06:05 PDT"]
[Termination "Game drawn by repetition"]

1. e4 {[%clk 0:03:00.9]} 1... g6 {[%clk 0:02:54.2]} 2. d4 {[%clk 0:03:00.6]}
2... Nf6 {[%clk 0:02:54.1]} 3. Nc3 {[%clk 0:03:00.9]} 3... d5 {[%clk 0:02:51.2]}
4. e5 {[%clk 0:02:57.9]} 4... Ne4 {[%clk 0:02:50.3]} 5. h4 {[%clk 0:02:50.6]}
5... c5 {[%clk 0:02:48.1]} 6. Nxe4 {[%clk 0:02:36.7]} 6... dxe4 {[%clk
0:02:47.6]} 7. dxc5 {[%clk 0:02:36.6]} 7... Qxd1+ {[%clk 0:02:46.7]} 8. Kxd1
{[%clk 0:02:37.5]} 8... Nc6 {[%clk 0:02:46.9]} 9. Bb5 {[%clk 0:02:18]} 9... Bg4+
{[%clk 0:02:45.6]} 10. Ke1 {[%clk 0:02:07.1]} 10... O-O-O {[%clk 0:02:44.7]} 11.
Bf4 {[%clk 0:02:07.5]} 11... Bg7 {[%clk 0:02:21.4]} 12. Bxc6 {[%clk 0:02:05.7]}
12... bxc6 {[%clk 0:02:22.3]} 13. Ne2 {[%clk 0:02:00.3]} 13... Rd5 {[%clk
0:02:14.4]} 14. b4 {[%clk 0:01:50.6]} 14... Bxe5 {[%clk 0:02:06.4]} 15. Bxe5
{[%clk 0:01:50.1]} 15... Rxe5 {[%clk 0:02:07.3]} 16. c3 {[%clk 0:01:41.8]} 16...
Rd5 {[%clk 0:01:58]} 17. Nd4 {[%clk 0:01:41.2]} 17... Kc7 {[%clk 0:01:26.6]} 18.
f3 {[%clk 0:01:39.7]} 18... exf3 {[%clk 0:01:25.4]} 19. gxf3 {[%clk 0:01:40.6]}
19... e5 {[%clk 0:01:21.9]} 20. fxg4 {[%clk 0:01:39.6]} 20... exd4 {[%clk
0:01:21.7]} 21. c4 {[%clk 0:01:37.5]} 21... Re5+ {[%clk 0:01:18.4]} 22. Kd2
{[%clk 0:01:37.7]} 22... Rhe8 {[%clk 0:01:04.2]} 23. Rae1 {[%clk 0:01:35.3]}
23... a5 {[%clk 0:00:56.2]} 24. a3 {[%clk 0:01:32.9]} 24... Kd7 {[%clk
0:00:39.7]} 25. Rxe5 {[%clk 0:00:56.8]} 25... Rxe5 {[%clk 0:00:40.6]} 26. Re1
{[%clk 0:00:57.2]} 26... Rxe1 {[%clk 0:00:35.4]} 27. Kxe1 {[%clk 0:00:58.1]}
27... f5 {[%clk 0:00:35.5]} 28. gxf5 {[%clk 0:00:49]} 28... gxf5 {[%clk
0:00:36.4]} 29. Ke2 {[%clk 0:00:30.2]} 29... f4 {[%clk 0:00:33.7]} 30. Kd3
{[%clk 0:00:30.7]} 30... f3 {[%clk 0:00:32.7]} 31. b5 {[%clk 0:00:23.9]} 31...
Kc7 {[%clk 0:00:27.3]} 32. h5 {[%clk 0:00:20.2]} 32... Kb7 {[%clk 0:00:19.5]}
33. a4 {[%clk 0:00:17.7]} 33... Kc7 {[%clk 0:00:19]} 34. h6 {[%clk 0:00:17.5]}
34... Kb7 {[%clk 0:00:18.4]} 35. Kd2 {[%clk 0:00:15.3]} 35... Kb8 {[%clk
0:00:17.7]} 36. Kd3 {[%clk 0:00:15.1]} 36... Kc8 {[%clk 0:00:17.7]} 37. Kd2
{[%clk 0:00:13.2]} 37... Kd7 {[%clk 0:00:17.7]} 38. b6 {[%clk 0:00:09]} 38...
Kc8 {[%clk 0:00:17.5]} 39. Kd3 {[%clk 0:00:09.3]} 39... Kb8 {[%clk 0:00:17.2]}
40. Kd2 {[%clk 0:00:09.5]} 40... Kb7 {[%clk 0:00:17.3]} 41. Kd3 {[%clk 0:00:10]}
41... Ka6 {[%clk 0:00:17.1]} 42. Kd2 {[%clk 0:00:10]} 42... Kb7 {[%clk
0:00:15.8]} 43. Kd3 {[%clk 0:00:10.4]} 43... Kc8 {[%clk 0:00:16]} 44. Kd2 {[%clk
0:00:10.7]} 44... Kd7 {[%clk 0:00:16.1]} 45. Kd3 {[%clk 0:00:11.1]} 45... Kd8
{[%clk 0:00:16.4]} 46. Kd2 {[%clk 0:00:11.3]} 46... Kc8 {[%clk 0:00:12.6]} 47.
Kd3 {[%clk 0:00:11.3]} 47... Kb7 {[%clk 0:00:12.7]} 48. Kd2 {[%clk 0:00:11.4]}
48... Ka6 {[%clk 0:00:12.8]} 49. Kd3 {[%clk 0:00:10.6]} 49... Kb7 {[%clk
0:00:13]} 50. Kd2 {[%clk 0:00:10.9]} 50... Ka6 {[%clk 0:00:13.1]} 51. Kd3 {[%clk
0:00:11.2]} 51... Kb7 {[%clk 0:00:13.1]} 1/2-1/2

[Event "*** Titled Tuesday Blitz"]
[Site "Chess.com"]
[Date "2021.04.20"]
[Round "6"]
[White "MatyChess1"]
[Black "zmeeed67"]
[Result "0-1"]
[WhiteElo "2639"]
[BlackElo "2513"]
[TimeControl "180+1"]
[EndTime "11:06:09 PDT"]
[Termination "zmeeed67 won on time"]

1. e4 {[%clk 0:03:00.9]} 1... c5 {[%clk 0:02:59.4]} 2. Nf3 {[%clk 0:03:00.9]}
2... e6 {[%clk 0:02:59.7]} 3. g3 {[%clk 0:03:00.8]} 3... Nc6 {[%clk 0:02:59.2]}
4. Bg2 {[%clk 0:03:00.5]} 4... Nf6 {[%clk 0:02:59.9]} 5. Qe2 {[%clk 0:03:00.6]}
5... d5 {[%clk 0:02:58.9]} 6. exd5 {[%clk 0:03:01.5]} 6... Nxd5 {[%clk
0:02:58.6]} 7. O-O {[%clk 0:03:02]} 7... Be7 {[%clk 0:02:58.5]} 8. Rd1 {[%clk
0:03:02.7]} 8... Qb6 {[%clk 0:02:55]} 9. Na3 {[%clk 0:03:00.1]} 9... O-O {[%clk
0:02:53.3]} 10. Nc4 {[%clk 0:03:00.6]} 10... Qc7 {[%clk 0:02:52.7]} 11. d3
{[%clk 0:02:57]} 11... Bf6 {[%clk 0:02:41.6]} 12. a4 {[%clk 0:02:54.7]} 12... b6
{[%clk 0:02:32.4]} 13. c3 {[%clk 0:02:53.6]} 13... Bb7 {[%clk 0:02:30.8]} 14.
Ng5 {[%clk 0:02:53.3]} 14... Rad8 {[%clk 0:02:23.3]} 15. Qh5 {[%clk 0:02:45.9]}
15... h6 {[%clk 0:02:10.9]} 16. Ne4 {[%clk 0:02:44.9]} 16... Be7 {[%clk
0:02:11.2]} 17. Re1 {[%clk 0:02:09.5]} 17... Nf6 {[%clk 0:01:53.6]} 18. Nxf6+
{[%clk 0:02:09.7]} 18... Bxf6 {[%clk 0:01:54.5]} 19. Bf4 {[%clk 0:01:56.5]}
19... e5 {[%clk 0:01:54.7]} 20. Be3 {[%clk 0:00:54.7]} 20... Ne7 {[%clk
0:01:30.9]} 21. Be4 {[%clk 0:00:48]} 21... Bd5 {[%clk 0:00:41.2]} 22. Qf3 {[%clk
0:00:30.5]} 22... Qd7 {[%clk 0:00:31.7]} 23. Bxh6 {[%clk 0:00:17.7]} 23... Be6
{[%clk 0:00:21.2]} 24. Bd2 {[%clk 0:00:09.1]} 24... Bg4 {[%clk 0:00:21.4]} 25.
Qe3 {[%clk 0:00:08.4]} 25... Nd5 {[%clk 0:00:22]} 26. Bxd5 {[%clk 0:00:07.7]}
26... Qxd5 {[%clk 0:00:22.9]} 27. Nxe5 {[%clk 0:00:05.9]} 27... Bh3 {[%clk
0:00:20.9]} 28. Nf3 {[%clk 0:00:05.2]} 28... Bg5 {[%clk 0:00:15.2]} 29. Qe4
{[%clk 0:00:04.8]} 29... Bxd2 {[%clk 0:00:04.5]} 30. Qxd5 {[%clk 0:00:04.5]}
30... Rxd5 {[%clk 0:00:05.4]} 31. Nxd2 {[%clk 0:00:05.2]} 31... Rxd3 {[%clk
0:00:06.3]} 32. Nc4 {[%clk 0:00:04.4]} 32... Rfd8 {[%clk 0:00:06.7]} 33. Ne3
{[%clk 0:00:05.1]} 33... Rd2 {[%clk 0:00:01.8]} 34. Rad1 {[%clk 0:00:05.1]}
34... Be6 {[%clk 0:00:02.4]} 35. Rxd2 {[%clk 0:00:03.9]} 35... Rxd2 {[%clk
0:00:03.3]} 36. Rb1 {[%clk 0:00:03.7]} 36... Ba2 {[%clk 0:00:03.6]} 37. Rd1
{[%clk 0:00:03.2]} 37... Rxb2 {[%clk 0:00:03.9]} 38. Rd8+ {[%clk 0:00:03.7]}
38... Kh7 {[%clk 0:00:04.4]} 39. Rd7 {[%clk 0:00:04.4]} 39... Rb3 {[%clk
0:00:01.6]} 40. c4 {[%clk 0:00:03.3]} 40... Rb1+ {[%clk 0:00:01.6]} 41. Kg2
{[%clk 0:00:03.3]} 41... Rb4 {[%clk 0:00:02.5]} 42. Rxa7 {[%clk 0:00:02]} 42...
Bxc4 {[%clk 0:00:03.1]} 0-1

[Event "*** Titled Tuesday Blitz"]
[Site "Chess.com"]
[Date "2021.04.20"]
[Round "6"]
[White "ErikBlomqvist"]
[Black "bricolageur"]
[Result "1-0"]
[WhiteElo "2584"]
[BlackElo "2342"]
[TimeControl "180+1"]
[EndTime "11:06:10 PDT"]
[Termination "ErikBlomqvist won by resignation"]

1. e4 {[%clk 0:03:00.9]} 1... e5 {[%clk 0:03:00.4]} 2. Bc4 {[%clk 0:02:59.9]}
2... Nf6 {[%clk 0:02:59.2]} 3. d3 {[%clk 0:03:00]} 3... c6 {[%clk 0:02:58.2]} 4.
Nf3 {[%clk 0:03:00.5]} 4... d6 {[%clk 0:02:54.6]} 5. O-O {[%clk 0:02:58.1]} 5...
g6 {[%clk 0:02:50]} 6. d4 {[%clk 0:02:27.5]} 6... Nxe4 {[%clk 0:02:41.2]} 7.
dxe5 {[%clk 0:02:21]} 7... d5 {[%clk 0:02:41.6]} 8. Be2 {[%clk 0:02:05.7]} 8...
Bg7 {[%clk 0:02:33.9]} 9. c4 {[%clk 0:02:00.1]} 9... O-O {[%clk 0:02:32.5]} 10.
Nbd2 {[%clk 0:01:38.2]} 10... Bf5 {[%clk 0:02:10.7]} 11. Re1 {[%clk 0:01:19.8]}
11... Qb6 {[%clk 0:02:06.3]} 12. Nxe4 {[%clk 0:01:12.7]} 12... dxe4 {[%clk
0:02:06]} 13. Be3 {[%clk 0:01:06.9]} 13... exf3 {[%clk 0:01:59.6]} 14. Bxb6
{[%clk 0:01:05.8]} 14... fxe2 {[%clk 0:02:00.5]} 15. Qxe2 {[%clk 0:01:04.6]}
15... axb6 {[%clk 0:02:01.1]} 16. g4 {[%clk 0:00:54.9]} 16... Be6 {[%clk
0:01:58.6]} 17. f4 {[%clk 0:00:51.4]} 17... c5 {[%clk 0:01:48.8]} 18. Qe4 {[%clk
0:00:47.1]} 18... Nc6 {[%clk 0:01:48.9]} 19. f5 {[%clk 0:00:47.4]} 19... Bc8
{[%clk 0:01:36.8]} 20. Qf4 {[%clk 0:00:38.5]} 20... Nd4 {[%clk 0:01:30.4]} 21.
f6 {[%clk 0:00:36.9]} 21... g5 {[%clk 0:01:04.8]} 22. Qe4 {[%clk 0:00:20.8]}
22... Bh8 {[%clk 0:00:46.9]} 23. Re3 {[%clk 0:00:20.8]} 23... Re8 {[%clk
0:00:44.2]} 24. Rh3 {[%clk 0:00:20]} 24... Bf5 {[%clk 0:00:33.2]} 25. gxf5
{[%clk 0:00:19.5]} 25... Bxf6 {[%clk 0:00:33.5]} 26. e6 {[%clk 0:00:12.1]} 26...
Kg7 {[%clk 0:00:24]} 27. Qxb7 {[%clk 0:00:07.8]} 27... Rf8 {[%clk 0:00:21]} 28.
Re1 {[%clk 0:00:04]} 28... Rxa2 {[%clk 0:00:19.3]} 29. e7 {[%clk 0:00:04]} 29...
Re8 {[%clk 0:00:18.8]} 30. Qd7 {[%clk 0:00:04.2]} 30... Raa8 {[%clk 0:00:18.5]}
31. Qd5 {[%clk 0:00:04.6]} 31... Rxe7 {[%clk 0:00:14.4]} 32. Rxe7 {[%clk
0:00:03.7]} 32... Ra1+ {[%clk 0:00:14.2]} 33. Kg2 {[%clk 0:00:02.9]} 33... Bxe7
{[%clk 0:00:14.4]} 34. Rxh7+ {[%clk 0:00:03.5]} 34... Kxh7 {[%clk 0:00:11.9]}
35. Qxf7+ {[%clk 0:00:04.4]} 35... Kh8 {[%clk 0:00:12.4]} 36. Qxe7 {[%clk
0:00:04.3]} 36... Nxf5 {[%clk 0:00:03.8]} 37. Qf6+ {[%clk 0:00:03.9]} 37... Kh7
{[%clk 0:00:04.7]} 38. Qxf5+ {[%clk 0:00:04.1]} 38... Kh6 {[%clk 0:00:05.6]} 39.
Qf6+ {[%clk 0:00:04.2]} 39... Kh5 {[%clk 0:00:05.9]} 40. Qf7+ {[%clk 0:00:04.6]}
40... Kh6 {[%clk 0:00:05]} 41. Qf6+ {[%clk 0:00:05.1]} 41... Kh5 {[%clk
0:00:05.6]} 42. Qxb6 {[%clk 0:00:06]} 42... Rd1 {[%clk 0:00:05]} 43. Qb3 {[%clk
0:00:05.9]} 43... Rd2+ {[%clk 0:00:05.1]} 44. Kg1 {[%clk 0:00:06]} 44... Rd4
{[%clk 0:00:05.7]} 45. Qf3+ {[%clk 0:00:05.9]} 45... Rg4+ {[%clk 0:00:06]} 46.
Kf2 {[%clk 0:00:05.3]} 46... Kh4 {[%clk 0:00:06.4]} 47. b3 {[%clk 0:00:05.4]}
47... Rf4 {[%clk 0:00:06.9]} 48. Qxf4+ {[%clk 0:00:05.6]} 48... gxf4 {[%clk
0:00:07.8]} 49. Kf3 {[%clk 0:00:06.5]} 49... Kh3 {[%clk 0:00:08.2]} 50. Kxf4
{[%clk 0:00:06.8]} 50... Kxh2 {[%clk 0:00:09.1]} 51. Ke5 {[%clk 0:00:07.7]}
51... Kg3 {[%clk 0:00:09.5]} 52. Kd5 {[%clk 0:00:08.6]} 52... Kf3 {[%clk
0:00:10.4]} 53. Kxc5 {[%clk 0:00:09.5]} 53... Ke3 {[%clk 0:00:11]} 54. b4 {[%clk
0:00:10.4]} 54... Kd3 {[%clk 0:00:11.9]} 55. b5 {[%clk 0:00:11.3]} 1-0

[Event "*** Titled Tuesday Blitz"]
[Site "Chess.com"]
[Date "2021.04.20"]
[Round "6"]
[White "AungTZ"]
[Black "viktorgen2021"]
[Result "1/2-1/2"]
[WhiteElo "2155"]
[BlackElo "2365"]
[TimeControl "180+1"]
[EndTime "11:06:10 PDT"]
[Termination "Game drawn - insufficient material"]

1. e4 {[%clk 0:00:41]} 1... c6 {[%clk 0:02:58.6]} 2. d4 {[%clk 0:00:40.7]} 2...
d5 {[%clk 0:02:55.7]} 3. Nc3 {[%clk 0:00:41.1]} 3... dxe4 {[%clk 0:02:55.4]} 4.
Nxe4 {[%clk 0:00:42]} 4... Nf6 {[%clk 0:02:55.9]} 5. Nxf6+ {[%clk 0:00:41.8]}
5... exf6 {[%clk 0:02:56.8]} 6. Nf3 {[%clk 0:00:42.1]} 6... Bd6 {[%clk
0:02:56.2]} 7. Be2 {[%clk 0:00:42.3]} 7... O-O {[%clk 0:02:55.5]} 8. O-O {[%clk
0:00:43.2]} 8... Re8 {[%clk 0:02:55.8]} 9. Be3 {[%clk 0:00:43.4]} 9... Nd7
{[%clk 0:02:55.6]} 10. h3 {[%clk 0:00:44]} 10... Nf8 {[%clk 0:02:54.2]} 11. c4
{[%clk 0:00:43.6]} 11... Qc7 {[%clk 0:02:53.3]} 12. Qc2 {[%clk 0:00:43.2]} 12...
c5 {[%clk 0:02:52.8]} 13. Rad1 {[%clk 0:00:41.9]} 13... Ng6 {[%clk 0:02:45.3]}
14. Rfe1 {[%clk 0:00:40.7]} 14... b6 {[%clk 0:02:41.4]} 15. d5 {[%clk
0:00:38.3]} 15... f5 {[%clk 0:02:31.9]} 16. Bf1 {[%clk 0:00:36.9]} 16... Bd7
{[%clk 0:02:26.4]} 17. Bd2 {[%clk 0:00:36.2]} 17... f4 {[%clk 0:02:13.1]} 18.
Bc3 {[%clk 0:00:35.6]} 18... a6 {[%clk 0:01:54]} 19. b3 {[%clk 0:00:34.8]} 19...
b5 {[%clk 0:01:53.5]} 20. Qd2 {[%clk 0:00:34.6]} 20... bxc4 {[%clk 0:01:44.7]}
21. bxc4 {[%clk 0:00:34]} 21... a5 {[%clk 0:01:43.6]} 22. Rxe8+ {[%clk 0:00:31]}
22... Bxe8 {[%clk 0:01:42.9]} 23. Re1 {[%clk 0:00:31.5]} 23... Bd7 {[%clk
0:01:41.9]} 24. Qb2 {[%clk 0:00:30.5]} 24... f6 {[%clk 0:01:35.1]} 25. Rb1
{[%clk 0:00:26.2]} 25... Rb8 {[%clk 0:01:31.7]} 26. Qxb8+ {[%clk 0:00:25.3]}
26... Qxb8 {[%clk 0:01:31.6]} 27. Rxb8+ {[%clk 0:00:26.2]} 27... Bxb8 {[%clk
0:01:32.2]} 28. Bxa5 {[%clk 0:00:26.8]} 28... Ne7 {[%clk 0:01:22.3]} 29. Nd2
{[%clk 0:00:24.1]} 29... f5 {[%clk 0:01:21.4]} 30. Nb3 {[%clk 0:00:23.9]} 30...
Bd6 {[%clk 0:01:21.5]} 31. Bb6 {[%clk 0:00:23.9]} 31... Nc8 {[%clk 0:01:20.4]}
32. Bxc5 {[%clk 0:00:23.6]} 32... Kf7 {[%clk 0:01:18.6]} 33. Bxd6 {[%clk
0:00:22.9]} 33... Nxd6 {[%clk 0:01:19.5]} 34. c5 {[%clk 0:00:23.3]} 34... Ne4
{[%clk 0:01:17.8]} 35. c6 {[%clk 0:00:22.9]} 35... Bc8 {[%clk 0:01:17.7]} 36. f3
{[%clk 0:00:21.4]} 36... Nd6 {[%clk 0:01:05.6]} 37. Kf2 {[%clk 0:00:21.5]} 37...
Kf6 {[%clk 0:01:04.3]} 38. Ke1 {[%clk 0:00:19.3]} 38... Ke5 {[%clk 0:01:04.8]}
39. Nc5 {[%clk 0:00:15.6]} 39... Kxd5 {[%clk 0:01:04.3]} 40. Nb7 {[%clk
0:00:15.1]} 40... Ne8 {[%clk 0:00:54.5]} 41. Na5 {[%clk 0:00:13.8]} 41... Kc5
{[%clk 0:00:54.6]} 42. Kd2 {[%clk 0:00:13.3]} 42... Kb6 {[%clk 0:00:54.3]} 43.
Nc4+ {[%clk 0:00:12.8]} 43... Kxc6 {[%clk 0:00:54]} 44. Ne5+ {[%clk 0:00:12.8]}
44... Kd5 {[%clk 0:00:52.2]} 45. Nd3 {[%clk 0:00:13.2]} 45... g5 {[%clk
0:00:51.7]} 46. h4 {[%clk 0:00:12.3]} 46... h6 {[%clk 0:00:51.4]} 47. hxg5
{[%clk 0:00:13.2]} 47... hxg5 {[%clk 0:00:52.3]} 48. Nf2 {[%clk 0:00:12.4]}
48... Nd6 {[%clk 0:00:50.5]} 49. Bd3 {[%clk 0:00:12.2]} 49... Kd4 {[%clk
0:00:49.8]} 50. Nd1 {[%clk 0:00:10]} 50... Bb7 {[%clk 0:00:46.2]} 51. Nc3 {[%clk
0:00:09.6]} 51... Nc4+ {[%clk 0:00:29]} 52. Bxc4 {[%clk 0:00:08.6]} 52... Kxc4
{[%clk 0:00:29.9]} 53. a4 {[%clk 0:00:07.4]} 53... g4 {[%clk 0:00:30.1]} 54. Ne2
{[%clk 0:00:06.7]} 54... gxf3 {[%clk 0:00:27]} 55. gxf3 {[%clk 0:00:06.8]} 55...
Bxf3 {[%clk 0:00:27.9]} 56. Nxf4 {[%clk 0:00:07.4]} 56... Kb4 {[%clk 0:00:27.2]}
57. Ke3 {[%clk 0:00:07.8]} 57... Be4 {[%clk 0:00:27.4]} 58. Ne6 {[%clk
0:00:07.6]} 58... Kxa4 {[%clk 0:00:27.7]} 59. Kf4 {[%clk 0:00:08.5]} 59... Kb5
{[%clk 0:00:27.7]} 60. Ng7 {[%clk 0:00:09.4]} 60... Kc6 {[%clk 0:00:27.5]} 61.
Nxf5 {[%clk 0:00:10.3]} 1/2-1/2

[Event "*** Titled Tuesday Blitz"]
[Site "Chess.com"]
[Date "2021.04.20"]
[Round "6"]
[White "NovikovaGalina"]
[Black "MFBerna"]
[Result "0-1"]
[WhiteElo "2307"]
[BlackElo "2503"]
[TimeControl "180+1"]
[EndTime "11:06:12 PDT"]
[Termination "MFBerna won by checkmate"]

1. e4 {[%clk 0:03:00.9]} 1... c5 {[%clk 0:02:59.7]} 2. Nf3 {[%clk 0:03:00.8]}
2... Nc6 {[%clk 0:02:59.5]} 3. d4 {[%clk 0:03:00.9]} 3... cxd4 {[%clk
0:02:59.3]} 4. Nxd4 {[%clk 0:03:00.4]} 4... e6 {[%clk 0:02:59.6]} 5. Be2 {[%clk
0:02:59.1]} 5... a6 {[%clk 0:02:56.6]} 6. c4 {[%clk 0:02:53]} 6... Nf6 {[%clk
0:02:54]} 7. Nc3 {[%clk 0:02:45.8]} 7... Bb4 {[%clk 0:02:54]} 8. Bf3 {[%clk
0:02:43.3]} 8... O-O {[%clk 0:02:47.8]} 9. Bg5 {[%clk 0:02:41.7]} 9... h6 {[%clk
0:02:46.7]} 10. Bh4 {[%clk 0:02:40.2]} 10... Ne5 {[%clk 0:02:38.1]} 11. Be2
{[%clk 0:02:10.4]} 11... Ng6 {[%clk 0:02:19.1]} 12. Bxf6 {[%clk 0:02:04.7]}
12... Qxf6 {[%clk 0:02:20]} 13. O-O {[%clk 0:02:04]} 13... Nf4 {[%clk
0:02:04.4]} 14. Bf3 {[%clk 0:01:59.1]} 14... d6 {[%clk 0:01:57.2]} 15. Nce2
{[%clk 0:01:52.9]} 15... Bc5 {[%clk 0:01:50.7]} 16. Nb3 {[%clk 0:01:40]} 16...
Nh3+ {[%clk 0:01:28.8]} 17. gxh3 {[%clk 0:01:32.4]} 17... Qxf3 {[%clk
0:01:25.5]} 18. Nxc5 {[%clk 0:01:32.3]} 18... dxc5 {[%clk 0:01:26.4]} 19. Ng3
{[%clk 0:01:33]} 19... Qxd1 {[%clk 0:01:22.9]} 20. Raxd1 {[%clk 0:01:33.3]}
20... e5 {[%clk 0:01:14.9]} 21. Kg2 {[%clk 0:01:23.3]} 21... Be6 {[%clk
0:01:13.9]} 22. b3 {[%clk 0:01:23.3]} 22... Rfd8 {[%clk 0:01:04.7]} 23. f3
{[%clk 0:01:22.9]} 23... Kf8 {[%clk 0:01:00.7]} 24. h4 {[%clk 0:01:14.9]} 24...
Ke7 {[%clk 0:00:53.9]} 25. Kf2 {[%clk 0:01:15.3]} 25... b5 {[%clk 0:00:50.9]}
26. Nf5+ {[%clk 0:01:03.8]} 26... Kf6 {[%clk 0:00:41]} 27. Nd6 {[%clk
0:00:59.5]} 27... Rd7 {[%clk 0:00:28]} 28. cxb5 {[%clk 0:00:16.2]} 28... axb5
{[%clk 0:00:27.9]} 29. Rd2 {[%clk 0:00:16.5]} 29... Ke7 {[%clk 0:00:17.4]} 30.
Rfd1 {[%clk 0:00:16]} 30... Rad8 {[%clk 0:00:17.6]} 31. Nf5+ {[%clk 0:00:13.2]}
31... Bxf5 {[%clk 0:00:18]} 32. Rxd7+ {[%clk 0:00:12.6]} 32... Rxd7 {[%clk
0:00:16.3]} 33. Rc1 {[%clk 0:00:09.9]} 33... Be6 {[%clk 0:00:15]} 34. Rxc5
{[%clk 0:00:10.8]} 34... Rd2+ {[%clk 0:00:14.8]} 35. Kg3 {[%clk 0:00:09.2]}
35... Rxa2 {[%clk 0:00:10.9]} 36. Rxb5 {[%clk 0:00:09.5]} 36... Rb2 {[%clk
0:00:11.1]} 37. b4 {[%clk 0:00:06.6]} 37... Kf6 {[%clk 0:00:11.3]} 38. Rb7
{[%clk 0:00:06.2]} 38... g6 {[%clk 0:00:10.5]} 39. b5 {[%clk 0:00:06]} 39... Bc4
{[%clk 0:00:08.2]} 40. b6 {[%clk 0:00:06.1]} 40... Bf1 {[%clk 0:00:08.1]} 41.
Rb8 {[%clk 0:00:04.5]} 41... Rg2+ {[%clk 0:00:07.9]} 42. Kh3 {[%clk 0:00:04.4]}
42... Rg1# {[%clk 0:00:05.5]} 0-1

[Event "*** Titled Tuesday Blitz"]
[Site "Chess.com"]
[Date "2021.04.20"]
[Round "6"]
[White "TeukkaSalama"]
[Black "InvisibleWarrior2252"]
[Result "0-1"]
[WhiteElo "2378"]
[BlackElo "2515"]
[TimeControl "180+1"]
[EndTime "11:06:15 PDT"]
[Termination "InvisibleWarrior2252 won on time"]

1. d4 {[%clk 0:03:00.9]} 1... Nf6 {[%clk 0:03:00.2]} 2. Bf4 {[%clk 0:03:00]}
2... e6 {[%clk 0:03:00.1]} 3. e3 {[%clk 0:03:00.3]} 3... d5 {[%clk 0:03:00.8]}
4. Nf3 {[%clk 0:02:59.8]} 4... c5 {[%clk 0:03:01.3]} 5. c3 {[%clk 0:03:00]} 5...
Nc6 {[%clk 0:03:01.2]} 6. Nbd2 {[%clk 0:03:00.2]} 6... cxd4 {[%clk 0:03:01.6]}
7. exd4 {[%clk 0:03:00.1]} 7... Nh5 {[%clk 0:03:02.3]} 8. Be3 {[%clk 0:03:00.1]}
8... Bd6 {[%clk 0:03:01.9]} 9. Ne5 {[%clk 0:03:00.6]} 9... g6 {[%clk 0:03:01.4]}
10. Nd3 {[%clk 0:03:00]} 10... O-O {[%clk 0:03:00.2]} 11. g3 {[%clk 0:02:59.5]}
11... Ng7 {[%clk 0:03:00.8]} 12. Bg2 {[%clk 0:02:58.5]} 12... f6 {[%clk
0:03:00.4]} 13. O-O {[%clk 0:02:58]} 13... Nf5 {[%clk 0:03:00.2]} 14. Bf4 {[%clk
0:02:56.8]} 14... Re8 {[%clk 0:02:54.5]} 15. Re1 {[%clk 0:02:55.2]} 15... b6
{[%clk 0:02:44.9]} 16. a4 {[%clk 0:02:25.7]} 16... Ba6 {[%clk 0:02:38.9]} 17.
Bxd6 {[%clk 0:02:12.8]} 17... Qxd6 {[%clk 0:02:36.8]} 18. Nf4 {[%clk 0:02:11.3]}
18... Rad8 {[%clk 0:02:25.8]} 19. Qb3 {[%clk 0:02:08.7]} 19... Na5 {[%clk
0:02:22.7]} 20. Qa2 {[%clk 0:02:03.1]} 20... Kg7 {[%clk 0:02:09.1]} 21. b3
{[%clk 0:01:48.5]} 21... Rc8 {[%clk 0:01:22.8]} 22. Qb2 {[%clk 0:01:48.1]} 22...
Bb7 {[%clk 0:01:17.4]} 23. Rac1 {[%clk 0:01:46.8]} 23... e5 {[%clk 0:01:14]} 24.
dxe5 {[%clk 0:01:43.3]} 24... fxe5 {[%clk 0:01:14.9]} 25. Nd3 {[%clk 0:01:40]}
25... Kg8 {[%clk 0:01:07.6]} 26. Nb4 {[%clk 0:01:32.3]} 26... d4 {[%clk
0:00:57.3]} 27. Bxb7 {[%clk 0:01:09.8]} 27... Nxb7 {[%clk 0:00:58.2]} 28. Ne4
{[%clk 0:01:07.1]} 28... Qe6 {[%clk 0:00:39]} 29. c4 {[%clk 0:01:02.1]} 29...
Nc5 {[%clk 0:00:31.1]} 30. Nd5 {[%clk 0:01:01.2]} 30... Nd3 {[%clk 0:00:27.1]}
31. Qd2 {[%clk 0:00:56.1]} 31... Nxc1 {[%clk 0:00:24.6]} 32. Nef6+ {[%clk
0:00:47]} 32... Kg7 {[%clk 0:00:24.2]} 33. Nxe8+ {[%clk 0:00:43.6]} 33... Rxe8
{[%clk 0:00:25]} 34. Rxc1 {[%clk 0:00:39.4]} 34... e4 {[%clk 0:00:25.5]} 35. Qf4
{[%clk 0:00:31.3]} 35... e3 {[%clk 0:00:20.4]} 36. fxe3 {[%clk 0:00:31.4]} 36...
dxe3 {[%clk 0:00:21.3]} 37. Re1 {[%clk 0:00:28.2]} 37... e2 {[%clk 0:00:20.9]}
38. Qf3 {[%clk 0:00:20]} 38... Nd4 {[%clk 0:00:16.7]} 39. Qc3 {[%clk 0:00:18.8]}
39... Qe4 {[%clk 0:00:16.6]} 40. Nf4 {[%clk 0:00:15.2]} 40... Kg8 {[%clk
0:00:16.1]} 41. Kf2 {[%clk 0:00:09.7]} 41... g5 {[%clk 0:00:15.9]} 42. Nd5
{[%clk 0:00:05.4]} 42... Rf8+ {[%clk 0:00:15.3]} 43. Kg1 {[%clk 0:00:03.6]}
43... Nf3+ {[%clk 0:00:15.9]} 44. Kf2 {[%clk 0:00:03.3]} 44... Nd2+ {[%clk
0:00:13.6]} 45. Kg1 {[%clk 0:00:02.2]} 45... Rf1+ {[%clk 0:00:13.6]} 0-1